[Event "Early-Titled-Tuesday-Blitz-February-27-2024"]
[Site "Chess.com"]
[Date "2024.02.27"]
[Round "1"]
[White "Kimkibo"]
[Black "burbur555"]
[Result "0-1"]
[WhiteElo "2126"]
[BlackElo "2568"]
[TimeControl "180+1"]
[EndTime "8:08:04 PST"]
[Termination "burbur555 won on time"]

1. d4 {[%clk 0:02:59.5]} 1... c6 {[%clk 0:03:00.6]} 2. Nf3 {[%clk 0:02:57.3]}
2... d5 {[%clk 0:03:01.1]} 3. Bf4 {[%clk 0:02:56.8]} 3... Qb6 {[%clk 0:03:00.1]}
4. Qc1 {[%clk 0:02:52]} 4... Bf5 {[%clk 0:02:59.1]} 5. e3 {[%clk 0:02:48.4]}
5... e6 {[%clk 0:02:58.7]} 6. Nbd2 {[%clk 0:02:46.7]} 6... Nf6 {[%clk
0:02:53.1]} 7. Be2 {[%clk 0:02:45.9]} 7... Nbd7 {[%clk 0:02:51.8]} 8. O-O {[%clk
0:02:45.3]} 8... Nh5 {[%clk 0:02:41.3]} 9. Bg5 {[%clk 0:02:43.6]} 9... h6 {[%clk
0:02:40.9]} 10. Bh4 {[%clk 0:02:42.7]} 10... g5 {[%clk 0:02:40.3]} 11. Ne5
{[%clk 0:02:36.6]} 11... Nxe5 {[%clk 0:02:31.2]} 12. dxe5 {[%clk 0:02:32.3]}
12... gxh4 {[%clk 0:02:28.7]} 13. Bxh5 {[%clk 0:02:31.2]} 13... h3 {[%clk
0:02:24.7]} 14. g3 {[%clk 0:02:27.4]} 14... Bg7 {[%clk 0:02:21.7]} 15. e4 {[%clk
0:02:13.5]} 15... Bxe4 {[%clk 0:02:03.6]} 16. Nxe4 {[%clk 0:02:11.6]} 16... dxe4
{[%clk 0:02:03.4]} 17. Qf4 {[%clk 0:02:11.3]} 17... O-O {[%clk 0:02:03.6]} 18.
Qxe4 {[%clk 0:02:05.8]} 18... Qxb2 {[%clk 0:01:57.9]} 19. Rab1 {[%clk 0:01:56]}
19... Qxe5 {[%clk 0:01:58]} 20. Qxe5 {[%clk 0:01:54.2]} 20... Bxe5 {[%clk
0:01:58.2]} 21. Rxb7 {[%clk 0:01:55.1]} 21... Bd4 {[%clk 0:01:53.4]} 22. Bg4
{[%clk 0:01:45.2]} 22... Rad8 {[%clk 0:01:50.8]} 23. Bxh3 {[%clk 0:01:41.9]}
23... Bb6 {[%clk 0:01:50.8]} 24. Bg2 {[%clk 0:01:40.3]} 24... Rd2 {[%clk
0:01:49.8]} 25. Be4 {[%clk 0:01:32.7]} 25... Rfd8 {[%clk 0:01:41.5]} 26. Bd3
{[%clk 0:01:26.5]} 26... c5 {[%clk 0:01:40]} 27. a4 {[%clk 0:01:25.4]} 27... c4
{[%clk 0:01:39.4]} 28. Bxc4 {[%clk 0:01:24.8]} 28... Rxc2 {[%clk 0:01:37.9]} 29.
a5 {[%clk 0:01:13.7]} 29... Bc5 {[%clk 0:01:24.9]} 30. Bb3 {[%clk 0:01:12.2]}
30... Rb2 {[%clk 0:01:23.2]} 31. Rc1 {[%clk 0:00:58.1]} 31... Bxf2+ {[%clk
0:01:20.3]} 32. Kh1 {[%clk 0:00:54.1]} 32... Be3 {[%clk 0:01:17.7]} 33. Rc2
{[%clk 0:00:37]} 33... Rd1+ {[%clk 0:01:09.8]} 34. Kg2 {[%clk 0:00:33.2]} 34...
Rxc2+ {[%clk 0:01:07.9]} 35. Bxc2 {[%clk 0:00:29]} 35... Rd2+ {[%clk 0:01:03.6]}
36. Kf3 {[%clk 0:00:25.3]} 36... Bg1 {[%clk 0:01:04.1]} 37. Be4 {[%clk
0:00:19.1]} 37... Rxh2 {[%clk 0:01:01.6]} 38. Bc6 {[%clk 0:00:15]} 38... Kf8
{[%clk 0:00:57.6]} 39. Rb8+ {[%clk 0:00:11.9]} 39... Kg7 {[%clk 0:00:56.9]} 40.
Rb7 {[%clk 0:00:10.6]} 40... h5 {[%clk 0:00:52.1]} 41. Be8 {[%clk 0:00:08.7]}
41... Rf2+ {[%clk 0:00:52]} 42. Ke4 {[%clk 0:00:02]} 42... Rf5 {[%clk
0:00:51.1]} 43. a6 {[%clk 0:00:01.1]} 43... Kf8 {[%clk 0:00:50.9]} 44. Bd7
{[%clk 0:00:01.2]} 44... Bf2 {[%clk 0:00:46.7]} 45. Kd3 {[%clk 0:00:01.8]} 45...
Bg1 {[%clk 0:00:44.2]} 46. Ke4 {[%clk 0:00:02.1]} 46... Kg7 {[%clk 0:00:43.1]}
47. Kd3 {[%clk 0:00:02.8]} 47... Rf3+ {[%clk 0:00:42.1]} 48. Ke4 {[%clk
0:00:02.7]} 48... Rf6 {[%clk 0:00:42]} 49. Bc8 {[%clk 0:00:02.2]} 49... Kg6
{[%clk 0:00:37.2]} 50. Bd7 {[%clk 0:00:02.5]} 50... Rf1 {[%clk 0:00:33.5]} 0-1

[Event "Early-Titled-Tuesday-Blitz-February-27-2024"]
[Site "Chess.com"]
[Date "2024.02.27"]
[Round "1"]
[White "baki83"]
[Black "AjedrezenMadrid"]
[Result "0-1"]
[WhiteElo "2838"]
[BlackElo "2499"]
[TimeControl "180+1"]
[EndTime "8:08:06 PST"]
[Termination "AjedrezenMadrid won on time"]

1. e4 {[%clk 0:02:56.5]} 1... c6 {[%clk 0:02:58.9]} 2. d4 {[%clk 0:02:53.6]}
2... d5 {[%clk 0:02:59.8]} 3. e5 {[%clk 0:02:53.5]} 3... Bf5 {[%clk 0:02:59.6]}
4. Nf3 {[%clk 0:02:46.9]} 4... e6 {[%clk 0:02:58.9]} 5. Bd3 {[%clk 0:02:46.5]}
5... Bxd3 {[%clk 0:02:58]} 6. Qxd3 {[%clk 0:02:47.3]} 6... c5 {[%clk 0:02:57]}
7. c3 {[%clk 0:02:47.1]} 7... Nc6 {[%clk 0:02:56.3]} 8. O-O {[%clk 0:02:46.3]}
8... Qb6 {[%clk 0:02:54.2]} 9. a3 {[%clk 0:02:44.7]} 9... Qa6 {[%clk 0:02:51.8]}
10. Qd1 {[%clk 0:02:35.4]} 10... Rc8 {[%clk 0:02:47.8]} 11. Be3 {[%clk
0:02:28.9]} 11... Nge7 {[%clk 0:02:46.3]} 12. dxc5 {[%clk 0:02:28.2]} 12... Nf5
{[%clk 0:02:45.9]} 13. Bd4 {[%clk 0:02:25.7]} 13... Be7 {[%clk 0:02:28.4]} 14.
Re1 {[%clk 0:02:16.3]} 14... O-O {[%clk 0:02:28]} 15. b4 {[%clk 0:02:11.1]}
15... b6 {[%clk 0:02:27.2]} 16. cxb6 {[%clk 0:02:10.1]} 16... Ncxd4 {[%clk
0:02:22.9]} 17. cxd4 {[%clk 0:01:55.9]} 17... Bxb4 {[%clk 0:02:18.9]} 18. Rf1
{[%clk 0:01:23.3]} 18... axb6 {[%clk 0:02:13]} 19. Ra2 {[%clk 0:01:16.5]} 19...
Rc4 {[%clk 0:01:56.9]} 20. g4 {[%clk 0:00:56.2]} 20... Ne7 {[%clk 0:01:50]} 21.
Qe2 {[%clk 0:00:54.2]} 21... Ra8 {[%clk 0:01:44.9]} 22. Kg2 {[%clk 0:00:43.2]}
22... Ng6 {[%clk 0:01:42.3]} 23. Kg3 {[%clk 0:00:43.1]} 23... b5 {[%clk
0:01:28.1]} 24. h4 {[%clk 0:00:39.2]} 24... Bf8 {[%clk 0:01:24.9]} 25. h5 {[%clk
0:00:38.8]} 25... Ne7 {[%clk 0:01:24.2]} 26. Qd3 {[%clk 0:00:35.1]} 26... b4
{[%clk 0:01:17.3]} 27. Rd1 {[%clk 0:00:20.6]} 27... Nc6 {[%clk 0:01:13.2]} 28.
Ng5 {[%clk 0:00:20.2]} 28... g6 {[%clk 0:01:05.9]} 29. hxg6 {[%clk 0:00:20.5]}
29... hxg6 {[%clk 0:01:06]} 30. Qf3 {[%clk 0:00:20.6]} 30... Qb7 {[%clk
0:00:56.7]} 31. Qh1 {[%clk 0:00:19.5]} 31... Bg7 {[%clk 0:00:50.1]} 32. Rb2
{[%clk 0:00:19.2]} 32... Nxd4 {[%clk 0:00:41.2]} 33. f4 {[%clk 0:00:14.6]} 33...
Qc7 {[%clk 0:00:38.4]} 34. Rh2 {[%clk 0:00:14.2]} 34... Rc3+ {[%clk 0:00:37.5]}
35. Nxc3 {[%clk 0:00:14]} 35... Qxc3+ {[%clk 0:00:37.4]} 36. Kh4 {[%clk
0:00:11.3]} 36... Bxe5 {[%clk 0:00:27.8]} 37. Rh3 {[%clk 0:00:06.3]} 37... Bxf4
{[%clk 0:00:15.5]} 38. Rxc3 {[%clk 0:00:05.9]} 38... Kg7 {[%clk 0:00:16]} 39.
Kh3 {[%clk 0:00:06]} 39... Rh8+ {[%clk 0:00:16]} 40. Kg2 {[%clk 0:00:06.4]}
40... Rxh1 {[%clk 0:00:16.2]} 41. Rxh1 {[%clk 0:00:06.5]} 41... bxc3 {[%clk
0:00:17.1]} 42. Nh3 {[%clk 0:00:06.3]} 42... Bd2 {[%clk 0:00:17]} 43. a4 {[%clk
0:00:06.4]} 43... c2 {[%clk 0:00:17.1]} 44. a5 {[%clk 0:00:06.9]} 44... c1=Q
{[%clk 0:00:17.5]} 45. Rxc1 {[%clk 0:00:06.6]} 45... Bxc1 {[%clk 0:00:18.4]} 46.
a6 {[%clk 0:00:07.2]} 46... Nc6 {[%clk 0:00:19]} 47. Nf2 {[%clk 0:00:07.1]}
47... Ba3 {[%clk 0:00:18.7]} 48. Nd3 {[%clk 0:00:07.3]} 48... Bd6 {[%clk
0:00:19]} 49. Kf3 {[%clk 0:00:07.4]} 49... e5 {[%clk 0:00:19.4]} 50. Ke2 {[%clk
0:00:07.6]} 50... e4 {[%clk 0:00:19.7]} 51. Nc1 {[%clk 0:00:07.2]} 51... d4
{[%clk 0:00:20.3]} 52. Nb3 {[%clk 0:00:07.6]} 52... d3+ {[%clk 0:00:20.6]} 53.
Ke3 {[%clk 0:00:08.1]} 53... f5 {[%clk 0:00:20.5]} 54. gxf5 {[%clk 0:00:08.7]}
54... gxf5 {[%clk 0:00:21.4]} 55. Na5 {[%clk 0:00:08.7]} 55... Nxa5 {[%clk
0:00:21.3]} 56. Kd4 {[%clk 0:00:09.1]} 56... Bb8 {[%clk 0:00:21.2]} 57. Kd5
{[%clk 0:00:09.8]} 57... Ba7 {[%clk 0:00:21.3]} 58. Ke6 {[%clk 0:00:09.8]} 58...
d2 {[%clk 0:00:21.3]} 59. Ke7 {[%clk 0:00:10.4]} 59... e3 {[%clk 0:00:21.5]} 60.
Ke8 {[%clk 0:00:11.3]} 60... e2 {[%clk 0:00:21.9]} 61. Ke7 {[%clk 0:00:12.2]}
61... e1=Q+ {[%clk 0:00:22.3]} 0-1

[Event "Early-Titled-Tuesday-Blitz-February-27-2024"]
[Site "Chess.com"]
[Date "2024.02.27"]
[Round "1"]
[White "N4700000"]
[Black "Kobalia"]
[Result "1/2-1/2"]
[WhiteElo "2467"]
[BlackElo "2812"]
[TimeControl "180+1"]
[EndTime "8:08:11 PST"]
[Termination "Game drawn - insufficient material"]

1. e4 {[%clk 0:03:00.9]} 1... c5 {[%clk 0:02:54.9]} 2. a3 {[%clk 0:02:59.2]}
2... e6 {[%clk 0:02:52.7]} 3. b4 {[%clk 0:02:57.2]} 3... cxb4 {[%clk 0:02:52.7]}
4. axb4 {[%clk 0:02:57]} 4... Bxb4 {[%clk 0:02:52.4]} 5. c3 {[%clk 0:02:55.7]}
5... Be7 {[%clk 0:02:50.7]} 6. d4 {[%clk 0:02:51.6]} 6... d6 {[%clk 0:02:49.2]}
7. Bd3 {[%clk 0:02:50.4]} 7... Nf6 {[%clk 0:02:48.5]} 8. f4 {[%clk 0:02:48.5]}
8... Nc6 {[%clk 0:02:48.1]} 9. Nf3 {[%clk 0:02:47]} 9... d5 {[%clk 0:02:42]} 10.
e5 {[%clk 0:02:27.2]} 10... Ne4 {[%clk 0:02:39.7]} 11. O-O {[%clk 0:02:13.4]}
11... f5 {[%clk 0:02:38.5]} 12. exf6 {[%clk 0:02:10.2]} 12... Bxf6 {[%clk
0:02:38.1]} 13. Ne5 {[%clk 0:01:59.4]} 13... O-O {[%clk 0:02:35.4]} 14. Qe2
{[%clk 0:01:45.8]} 14... Bxe5 {[%clk 0:02:32.8]} 15. fxe5 {[%clk 0:01:42.3]}
15... Rxf1+ {[%clk 0:02:31.2]} 16. Qxf1 {[%clk 0:01:40.2]} 16... Bd7 {[%clk
0:02:28.6]} 17. Qf3 {[%clk 0:01:25.5]} 17... Qh4 {[%clk 0:02:25.6]} 18. g3
{[%clk 0:01:18]} 18... Qh3 {[%clk 0:02:25.3]} 19. Ba3 {[%clk 0:01:08.9]} 19...
Qf5 {[%clk 0:02:16.3]} 20. Bxe4 {[%clk 0:00:59.8]} 20... Qxe4 {[%clk 0:02:09.3]}
21. Qxe4 {[%clk 0:00:59.1]} 21... dxe4 {[%clk 0:02:10.2]} 22. Nd2 {[%clk
0:00:57.9]} 22... e3 {[%clk 0:02:09.8]} 23. Nc4 {[%clk 0:00:56.9]} 23... Rc8
{[%clk 0:02:01.4]} 24. Nd6 {[%clk 0:00:47.9]} 24... Rb8 {[%clk 0:01:54]} 25. Re1
{[%clk 0:00:45.7]} 25... b5 {[%clk 0:01:51.4]} 26. Bc5 {[%clk 0:00:43.5]} 26...
a5 {[%clk 0:01:50.5]} 27. Rxe3 {[%clk 0:00:40.8]} 27... b4 {[%clk 0:01:50.1]}
28. cxb4 {[%clk 0:00:40]} 28... axb4 {[%clk 0:01:50]} 29. Rb3 {[%clk 0:00:37.2]}
29... h6 {[%clk 0:01:48.3]} 30. Nc4 {[%clk 0:00:34.2]} 30... Be8 {[%clk
0:01:39.5]} 31. Ne3 {[%clk 0:00:25.9]} 31... Ra8 {[%clk 0:01:34.8]} 32. Rb2
{[%clk 0:00:23.2]} 32... Ra3 {[%clk 0:01:32.6]} 33. Nc4 {[%clk 0:00:21.5]} 33...
Rc3 {[%clk 0:01:27.4]} 34. Nd6 {[%clk 0:00:20.6]} 34... Bg6 {[%clk 0:01:27.5]}
35. Bxb4 {[%clk 0:00:20.4]} 35... Rc1+ {[%clk 0:01:27.4]} 36. Kf2 {[%clk
0:00:20.7]} 36... Nxd4 {[%clk 0:01:27.4]} 37. Bc5 {[%clk 0:00:20.6]} 37... Nc6
{[%clk 0:01:23.5]} 38. Be3 {[%clk 0:00:18.3]} 38... Ra1 {[%clk 0:01:19.2]} 39.
Bf4 {[%clk 0:00:18.3]} 39... Kh7 {[%clk 0:01:17.1]} 40. h4 {[%clk 0:00:18.6]}
40... Bh5 {[%clk 0:01:12.5]} 41. Rb6 {[%clk 0:00:18.3]} 41... Ra2+ {[%clk
0:01:10.8]} 42. Ke3 {[%clk 0:00:17.7]} 42... Ne7 {[%clk 0:01:10.3]} 43. Rb7
{[%clk 0:00:16.7]} 43... Nd5+ {[%clk 0:01:07.9]} 44. Kd4 {[%clk 0:00:17.1]}
44... Ra4+ {[%clk 0:01:07.8]} 45. Kc5 {[%clk 0:00:17.2]} 45... Nxf4 {[%clk
0:01:07.3]} 46. gxf4 {[%clk 0:00:18.1]} 46... Rxf4 {[%clk 0:01:06.7]} 47. Re7
{[%clk 0:00:16.7]} 47... Rxh4 {[%clk 0:00:56.8]} 48. Rxe6 {[%clk 0:00:16.9]}
48... Rg4 {[%clk 0:00:49.2]} 49. Re7 {[%clk 0:00:16.9]} 49... Bg6 {[%clk
0:00:47.9]} 50. e6 {[%clk 0:00:15.5]} 50... h5 {[%clk 0:00:48.2]} 51. Nf7 {[%clk
0:00:14.2]} 51... h4 {[%clk 0:00:38.8]} 52. Re8 {[%clk 0:00:14.3]} 52... Bf5
{[%clk 0:00:12.4]} 53. Rh8+ {[%clk 0:00:14.2]} 53... Kg6 {[%clk 0:00:12.6]} 54.
Ne5+ {[%clk 0:00:14.8]} 54... Kf6 {[%clk 0:00:12.4]} 55. Nxg4+ {[%clk
0:00:15.3]} 55... Bxg4 {[%clk 0:00:12.5]} 56. Rxh4 {[%clk 0:00:12.7]} 56... Bxe6
{[%clk 0:00:12.4]} 57. Rh1 {[%clk 0:00:09]} 57... g5 {[%clk 0:00:11.8]} 58. Rg1
{[%clk 0:00:09.4]} 58... g4 {[%clk 0:00:11.4]} 59. Rxg4 {[%clk 0:00:09.2]} 59...
Bxg4 {[%clk 0:00:11.3]} 1/2-1/2

[Event "Early-Titled-Tuesday-Blitz-February-27-2024"]
[Site "Chess.com"]
[Date "2024.02.27"]
[Round "1"]
[White "LiamPutnam2008"]
[Black "Ticoluis"]
[Result "1-0"]
[WhiteElo "2804"]
[BlackElo "2450"]
[TimeControl "180+1"]
[EndTime "8:08:13 PST"]
[Termination "LiamPutnam2008 won by resignation"]

1. e4 {[%clk 0:03:00.9]} 1... e5 {[%clk 0:02:58]} 2. Nf3 {[%clk 0:02:58.7]} 2...
Nc6 {[%clk 0:02:56.2]} 3. Bc4 {[%clk 0:02:57.3]} 3... Nf6 {[%clk 0:02:55.4]} 4.
d3 {[%clk 0:02:56.6]} 4... Bc5 {[%clk 0:02:54.4]} 5. c3 {[%clk 0:02:56.1]} 5...
d6 {[%clk 0:02:54.4]} 6. O-O {[%clk 0:02:53.6]} 6... a6 {[%clk 0:02:53.3]} 7.
Bb3 {[%clk 0:02:45.3]} 7... O-O {[%clk 0:02:52]} 8. h3 {[%clk 0:02:43.2]} 8...
Ba7 {[%clk 0:02:47.7]} 9. Nbd2 {[%clk 0:02:39.9]} 9... Ne7 {[%clk 0:02:47.6]}
10. Re1 {[%clk 0:02:32.1]} 10... Ng6 {[%clk 0:02:47.5]} 11. Nf1 {[%clk
0:02:32.4]} 11... h6 {[%clk 0:02:44]} 12. Ng3 {[%clk 0:02:29.6]} 12... Nh7
{[%clk 0:02:44.5]} 13. d4 {[%clk 0:02:24.8]} 13... Qf6 {[%clk 0:02:40]} 14. Nh5
{[%clk 0:02:07.7]} 14... Qe7 {[%clk 0:02:38.9]} 15. Be3 {[%clk 0:02:05.2]} 15...
Nf6 {[%clk 0:02:37.7]} 16. Ng3 {[%clk 0:02:00.5]} 16... Nh7 {[%clk 0:02:35]} 17.
Nh2 {[%clk 0:01:51.3]} 17... Be6 {[%clk 0:02:15]} 18. Nf5 {[%clk 0:01:33.2]}
18... Qd7 {[%clk 0:01:44.4]} 19. Qh5 {[%clk 0:01:30.4]} 19... Nf6 {[%clk
0:01:35.9]} 20. Qf3 {[%clk 0:01:28.9]} 20... Bxf5 {[%clk 0:01:33.7]} 21. Qxf5
{[%clk 0:01:23.8]} 21... Qxf5 {[%clk 0:01:30.9]} 22. exf5 {[%clk 0:01:24.7]}
22... Nh4 {[%clk 0:01:28.2]} 23. dxe5 {[%clk 0:01:21.5]} 23... Bxe3 {[%clk
0:01:20.8]} 24. Rxe3 {[%clk 0:01:22.4]} 24... dxe5 {[%clk 0:01:19.5]} 25. Rxe5
{[%clk 0:01:23.3]} 25... Rfe8 {[%clk 0:01:18.9]} 26. Rae1 {[%clk 0:01:20.4]}
26... Nxf5 {[%clk 0:01:16.8]} 27. Ng4 {[%clk 0:01:14.9]} 27... Nd6 {[%clk
0:01:12.3]} 28. Nxf6+ {[%clk 0:00:44.8]} 28... gxf6 {[%clk 0:01:10.1]} 29. R5e3
{[%clk 0:00:45.7]} 29... Rxe3 {[%clk 0:01:06.5]} 30. Rxe3 {[%clk 0:00:46.6]}
30... Kf8 {[%clk 0:01:06]} 31. g3 {[%clk 0:00:46.5]} 31... Rd8 {[%clk
0:01:03.4]} 32. Kg2 {[%clk 0:00:46.5]} 32... c5 {[%clk 0:01:01.5]} 33. Bd5
{[%clk 0:00:39.5]} 33... b5 {[%clk 0:00:57.1]} 34. b3 {[%clk 0:00:31.6]} 34...
c4 {[%clk 0:00:51.2]} 35. bxc4 {[%clk 0:00:30.3]} 35... bxc4 {[%clk 0:00:51.8]}
36. Rf3 {[%clk 0:00:30.9]} 36... Kg7 {[%clk 0:00:48.4]} 37. Rf4 {[%clk
0:00:31.1]} 37... Rc8 {[%clk 0:00:48.2]} 38. Rg4+ {[%clk 0:00:31.4]} 38... Kf8
{[%clk 0:00:47.5]} 39. Rd4 {[%clk 0:00:31.8]} 39... Nb5 {[%clk 0:00:40]} 40.
Rxc4 {[%clk 0:00:27.7]} 40... Rxc4 {[%clk 0:00:38.9]} 41. Bxc4 {[%clk
0:00:28.6]} 41... Nxc3 {[%clk 0:00:39]} 42. Kf3 {[%clk 0:00:29.1]} 42... a5
{[%clk 0:00:35.9]} 43. Ke3 {[%clk 0:00:28.7]} 43... Na4 {[%clk 0:00:35.7]} 44.
Kd4 {[%clk 0:00:27.4]} 44... Nb6 {[%clk 0:00:34.2]} 45. Kc5 {[%clk 0:00:25.9]}
45... Nd7+ {[%clk 0:00:32.8]} 46. Kb5 {[%clk 0:00:25.7]} 46... Ne5 {[%clk
0:00:33.3]} 47. Be2 {[%clk 0:00:25.8]} 47... Ke7 {[%clk 0:00:31.5]} 48. Kxa5
{[%clk 0:00:26.1]} 48... Kd6 {[%clk 0:00:32.2]} 49. Kb5 {[%clk 0:00:26.8]} 49...
Nc6 {[%clk 0:00:31.3]} 50. a4 {[%clk 0:00:27]} 50... Nd4+ {[%clk 0:00:30.8]} 51.
Kb6 {[%clk 0:00:27.2]} 51... Nxe2 {[%clk 0:00:31.4]} 52. a5 {[%clk 0:00:27.3]}
52... Nc3 {[%clk 0:00:31.1]} 53. a6 {[%clk 0:00:24.3]} 53... Nd5+ {[%clk
0:00:31.6]} 54. Kb7 {[%clk 0:00:24.7]} 54... Nc7 {[%clk 0:00:30.4]} 55. a7
{[%clk 0:00:24.5]} 55... Kd7 {[%clk 0:00:29.9]} 56. Kb6 {[%clk 0:00:20.6]} 56...
Kd6 {[%clk 0:00:28.8]} 57. h4 {[%clk 0:00:19.9]} 57... h5 {[%clk 0:00:27.7]} 58.
Kb7 {[%clk 0:00:19.6]} 58... Kd7 {[%clk 0:00:26.8]} 59. f3 {[%clk 0:00:19.5]}
59... Kd6 {[%clk 0:00:26.5]} 60. g4 {[%clk 0:00:19.3]} 60... hxg4 {[%clk
0:00:15.7]} 61. fxg4 {[%clk 0:00:20.2]} 61... Kd7 {[%clk 0:00:15.6]} 62. h5
{[%clk 0:00:20.3]} 62... Ne6 {[%clk 0:00:15.1]} 63. a8=Q {[%clk 0:00:20]} 63...
Nc5+ {[%clk 0:00:16]} 64. Kb6 {[%clk 0:00:20.2]} 64... Ne6 {[%clk 0:00:16.4]}
65. Qd5+ {[%clk 0:00:20.4]} 65... Ke7 {[%clk 0:00:16]} 66. h6 {[%clk 0:00:21.3]}
1-0

[Event "Early-Titled-Tuesday-Blitz-February-27-2024"]
[Site "Chess.com"]
[Date "2024.02.27"]
[Round "1"]
[White "Chessmissile07"]
[Black "Cambek64"]
[Result "1-0"]
[WhiteElo "2904"]
[BlackElo "2505"]
[TimeControl "180+1"]
[EndTime "8:08:14 PST"]
[Termination "Chessmissile07 won by resignation"]

1. a3 {[%clk 0:03:00.9]} 1... d5 {[%clk 0:02:57.3]} 2. d4 {[%clk 0:02:58.4]}
2... Bf5 {[%clk 0:02:54.4]} 3. Nf3 {[%clk 0:02:56.5]} 3... e6 {[%clk 0:02:53.7]}
4. e3 {[%clk 0:02:56.5]} 4... Nf6 {[%clk 0:02:52.2]} 5. Bd3 {[%clk 0:02:56.5]}
5... Bxd3 {[%clk 0:02:48.3]} 6. Qxd3 {[%clk 0:02:57.4]} 6... a6 {[%clk
0:02:46.1]} 7. O-O {[%clk 0:02:56.8]} 7... c5 {[%clk 0:02:46.1]} 8. dxc5 {[%clk
0:02:47.6]} 8... Bxc5 {[%clk 0:02:43.5]} 9. c4 {[%clk 0:02:47.5]} 9... Nc6
{[%clk 0:02:42.7]} 10. Nc3 {[%clk 0:02:47.2]} 10... dxc4 {[%clk 0:02:24.8]} 11.
Qxc4 {[%clk 0:02:48.1]} 11... Ba7 {[%clk 0:02:23]} 12. Rd1 {[%clk 0:02:39.5]}
12... Qe7 {[%clk 0:02:21.3]} 13. b4 {[%clk 0:02:33.3]} 13... O-O {[%clk
0:02:18.8]} 14. Bb2 {[%clk 0:02:33.5]} 14... Rac8 {[%clk 0:02:16]} 15. Qh4
{[%clk 0:02:31.6]} 15... Rfd8 {[%clk 0:02:11.7]} 16. Ne4 {[%clk 0:02:21.2]}
16... Nxe4 {[%clk 0:02:08]} 17. Qxe4 {[%clk 0:02:22.1]} 17... h6 {[%clk
0:02:05.1]} 18. Qg4 {[%clk 0:02:05.8]} 18... f5 {[%clk 0:01:58.5]} 19. Qg6
{[%clk 0:01:55.7]} 19... Qf7 {[%clk 0:01:56.9]} 20. Qg3 {[%clk 0:01:51.8]} 20...
Bb8 {[%clk 0:01:54.2]} 21. Qh4 {[%clk 0:01:50.2]} 21... Qe7 {[%clk 0:01:42.8]}
22. Qc4 {[%clk 0:01:39.4]} 22... Nd4 {[%clk 0:01:37.9]} 23. Qf1 {[%clk
0:01:28.8]} 23... Nxf3+ {[%clk 0:01:36.6]} 24. gxf3 {[%clk 0:01:29.7]} 24...
Qg5+ {[%clk 0:01:32.5]} 25. Qg2 {[%clk 0:01:24.7]} 25... Qxg2+ {[%clk
0:01:25.3]} 26. Kxg2 {[%clk 0:01:25.6]} 26... Kf7 {[%clk 0:01:24.2]} 27. f4
{[%clk 0:01:25.4]} 27... g5 {[%clk 0:01:20.9]} 28. fxg5 {[%clk 0:00:26.8]} 28...
hxg5 {[%clk 0:01:17.6]} 29. Rac1 {[%clk 0:00:27.3]} 29... Ke8 {[%clk 0:01:11.1]}
30. Bf6 {[%clk 0:00:21.5]} 30... Rxd1 {[%clk 0:01:07.1]} 31. Rxc8+ {[%clk
0:00:21.3]} 31... Kf7 {[%clk 0:01:04.6]} 32. Rxb8 {[%clk 0:00:21.7]} 32... Kxf6
{[%clk 0:01:04.6]} 33. Rxb7 {[%clk 0:00:22.3]} 33... Rd6 {[%clk 0:00:59.1]} 34.
a4 {[%clk 0:00:21.3]} 34... g4 {[%clk 0:00:57]} 35. a5 {[%clk 0:00:21.3]} 35...
Rc6 {[%clk 0:00:54.8]} 36. Rb6 {[%clk 0:00:13.7]} 36... Rc4 {[%clk 0:00:54.9]}
37. Kg3 {[%clk 0:00:13.8]} 37... Re4 {[%clk 0:00:50.6]} 38. h3 {[%clk
0:00:12.6]} 38... gxh3 {[%clk 0:00:49.3]} 39. Kxh3 {[%clk 0:00:13.5]} 39... Rg4
{[%clk 0:00:47.8]} 40. f4 {[%clk 0:00:12.4]} 40... Rg1 {[%clk 0:00:36.3]} 41.
Rxa6 {[%clk 0:00:12.5]} 41... Ke7 {[%clk 0:00:33.7]} 42. Rb6 {[%clk 0:00:11.7]}
42... Kd7 {[%clk 0:00:31.3]} 43. a6 {[%clk 0:00:11.9]} 43... Ra1 {[%clk
0:00:29.2]} 44. b5 {[%clk 0:00:11.3]} 44... Ra3 {[%clk 0:00:28.1]} 45. Kh4
{[%clk 0:00:11.5]} 45... Ra5 {[%clk 0:00:23.3]} 46. Kg5 {[%clk 0:00:10.8]} 46...
Ke7 {[%clk 0:00:22.2]} 47. Rb7+ {[%clk 0:00:10.3]} 47... Kd6 {[%clk 0:00:22.6]}
48. a7 {[%clk 0:00:10.4]} 48... e5 {[%clk 0:00:20.5]} 49. b6 {[%clk 0:00:10]}
49... exf4 {[%clk 0:00:20.1]} 50. exf4 {[%clk 0:00:10.9]} 50... Kc6 {[%clk
0:00:19.6]} 51. Rb8 {[%clk 0:00:11.1]} 51... Ra1 {[%clk 0:00:17.1]} 52. a8=Q+
{[%clk 0:00:11.1]} 52... Rxa8 {[%clk 0:00:17.3]} 53. Rxa8 {[%clk 0:00:12]} 53...
Kxb6 {[%clk 0:00:17.1]} 54. Re8 {[%clk 0:00:12.9]} 54... Kc7 {[%clk 0:00:17]}
55. Re5 {[%clk 0:00:13.8]} 55... Kd6 {[%clk 0:00:17]} 56. Kxf5 {[%clk
0:00:14.7]} 56... Kd7 {[%clk 0:00:15.1]} 57. Ke4 {[%clk 0:00:15.6]} 1-0